Cogmind - Beta 13 @@@ ROGUE MODE // 2024.04.02 @ 23:30:28 Player: KingStarKing Result: Destroyed by as-43747 with Assembled Rifle Performance ------------- Evolutions (0) 0 Regions Visited (2) 400 Robots Destroyed (23) 115 Value Destroyed (503) 503 Prototype IDs (0) 0 Alien Tech Used (0) 0 Bonus (0) 0 TOTAL SCORE: 1018 Bonus ------- None Cogmind --------- Core Integrity 0/250 Matter 288/300 Energy 104/125 System Corruption 0% Temperature Cool (20) Movement Treading (160) Location -10/Mines Parts ------- > --- POWER (1) -------- Light Ion Engine > --- PROPULSION (2) --- Light Treads Light Treads > --- UTILITY (2) ------ Heat Sink Small Storage Unit > --- WEAPON (2) ------- Small Laser Grenade Launcher > --- INVENTORY (8) ---- Light Ion Engine Aluminum Leg Aluminum Leg High-capacity Matter Pod (200) ECM Suite Medium Laser Rocket Launcher Peak State ------------ > --- POWER ------------ Ion Engine > --- PROPULSION ------- Light Treads Light Treads > --- UTILITY ---------- Small Storage Unit Seismic Detector > --- WEAPON ----------- Medium Laser Medium Laser > --- INVENTORY -------- Light Ion Engine Aluminum Leg Aluminum Leg Wheel Compact Wheel EM Pulse Gun [Rating: 7] Favorites ----------- Power Light Ion Engine Engine Light Ion Engine Propulsion Aluminum Leg Treads Light Treads Leg Aluminum Leg Utility Small Storage Unit Device Heat Sink Storage Small Storage Unit Weapon Medium Laser Energy Gun Medium Laser Launcher Grenade Launcher Build | -11 -10 -10 ------- Run | Yrd Mat Min Slots Evolved . | . . . Power . | . . . Propulsion . | . . . Utility . | . . . Weapon . | . . . Parts Attached 31 | 7 21 3 Power 8 | 1 5 2 Engine 8 | 1 5 2 Core . | . . . Reactor . | . . . Propulsion 7 | 2 5 . Treads 4 | 2 2 . Leg 3 | . 3 . Wheel . | . . . Hover . | . . . Flight . | . . . Utility 6 | 2 4 . Device 5 | 1 4 . Storage 1 | 1 . . Processor . | . . . Hackware . | . . . Protection . | . . . Artifact . | . . . Weapon 10 | 2 7 1 Energy Gun 7 | 2 5 . Energy Cannon . | . . . Ballistic Gun . | . . . Ballistic Cannon . | . . . Launcher 3 | . 2 1 Special Weapon . | . . . Impact Weapon . | . . . Slashing Weapon . | . . . Piercing Weapon . | . . . Special Melee Weapon . | . . . Unidentified Prototypes . | . . . Parts Lost 3 | . 3 . Power 1 | . 1 . Propulsion . | . . . Utility . | . . . Weapon 2 | . 2 . Highest Loss Streak 1 | . 1 . To Critical Strikes . | . . . Average Slot Usage (%) 94 | . 94 100 Engine 13 | . 13 14 Treads 11 | . 8 28 Leg 16 | . 19 . Device 11 | . 11 14 Storage 14 | . 14 14 Energy Gun 25 | . 24 28 Naked Turns . | . . . Heaviest Build 15 | 15 15 12 Greatest Support 40 | 40 40 40 Greatest Overweight (x) . | . . . Average Overweight (x) . | . . . Largest Inventory Capacity 8 | 8 8 8 Average Capacity 7 | 7 8 8 Most Carried 8 | 8 8 7 Average Carried 7 | 4 7 6 Final Capacity 8 | 8 8 8 Final Carried 7 | 6 7 7 Class Distribution -------------------- 100% | Mutant Dominant Class ---------------- Mutant | -10/Materials Mutant | -10/Mines Resources | -11 -10 -10 ----------- Run | Yrd Mat Min Matter Collected 673 | 225 410 38 Remotely . | . . . Salvage Created 637 | 31 557 49 Parts 38 | 5 24 9 Haulers Intercepted . | . . . Recyclers Shooed . | . . . Parts Field Recycled . | . . . Retrieved Matter . | . . . Parts Self-Destructed . | . . . Prevented . | . . . Kills | -11 -10 -10 ------- Run | Yrd Mat Min Combat Hostiles Destroyed 17 | . 14 3 Guns 16 | . 13 3 Classes Destroyed 6 | 1 5 . Worker 1 | . 1 . Builder 1 | . 1 . Tunneler 3 | 2 1 . Operator 1 | . 1 . Swarmer 6 | . 3 3 Grunt 11 | . 11 . Best Kill Streak 4 | 2 4 3 Combat Bots Only 3 | . 3 3 Max Kills in Single Turn 2 | 1 2 1 Gunslinging . | . . . Exploded . | . . . Melee . | . . . Uniques/NPCs Destroyed . | . . . Combat | -11 -10 -10 -------- Run | Yrd Mat Min Hostile Shots Fired 134 | . 112 22 Missed 32 | . 28 4 Damage Taken 1123 | . 938 185 Core 255 | . 212 43 Absorbed by Shields . | . . . Regen/Repaired (Parts) 17 | . 17 . Core Remaining (%) 100 | 100 . . Volleys Fired 68 | 3 60 5 Largest 2 | 2 2 2 Hottest 100 | 100 100 90 Shots Fired 119 | 6 103 10 Gun 119 | 6 103 10 Cannon . | . . . Launcher . | . . . Special . | . . . Kinetic . | . . . Thermal 111 | 6 95 10 Explosive . | . . . Electromagnetic 8 | . 8 . Robot Hit Streak 9 | 1 9 2 Robot Miss Streak 3 | 3 3 2 Penetration Max . | . . . Secondary Targets 3 | . 2 1 Max Gunslinging Chain 1 | . 1 1 Shots Hit Robots 77 | 2 70 5 Core Hits 36 | 2 31 3 Critical Kills . | . . . Critical Parts Destroyed . | . . . Critical Strikes 8 | . 8 . Burn 8 | . 8 . Melee Attacks . | . . . Impact . | . . . Slashing . | . . . Piercing . | . . . Sneak Attacks . | . . . Combat Hostiles . | . . . Follow-up Attacks . | . . . Damage Inflicted 1024 | 26 925 73 Guns 1011 | 26 912 73 Cannons . | . . . Explosions . | . . . Melee . | . . . Ramming 13 | . 13 . Kinetic . | . . . Thermal 966 | 26 867 73 Explosive . | . . . Electromagnetic 45 | . 45 . Impact . | . . . Slashing . | . . . Piercing . | . . . Highest Corruption . | . . . Average Corruption . | . . . Corruption Purged . | . . . Corruption Blocked . | . . . Overload Shots . | . . . Overflow Damage . | . . . Projectiles . | . . . Explosions . | . . . Melee . | . . . Knockbacks . | . . . Impact . | . . . Kinetic . | . . . Secondary . | . . . Self-Inflicted Damage . | . . . Shots . | . . . Rammed 2 | . 2 . Targets Rammed 5 | . 5 . Kicked 2 | . 2 . Crushed 1 | . 1 . Highest Temperature 417 | 117 417 20 Average Temperature 129 | 59 135 18 Received Heat Transfer 548 | . 468 80 Effects 1 | . 1 . Shutdowns 1 | . 1 . Siege Activations . | . . . Robots Corrupted . | . . . Combat Hostiles . | . . . Parts Fried . | . . . Impact Corruptions . | . . . Robots Melted 1 | . 1 . Combat Hostiles 1 | . 1 . Parts Melted 13 | . 13 . Heat Transferred 3369 | 74 3097 198 Parts Sabotaged . | . . . Parts Stolen . | . . . Parts Stripped . | . . . Power Chain Reactions . | . . . Alert | -11 -10 -10 ------- Run | Yrd Mat Min Peak Influence 213 | 10 213 111 Initial 26 | . 6 26 Average 63 | 2 64 95 Maximum Alert Level 1 | . 1 . Low Security (%) 99 | 100 99 100 Level 1 . | . . . Level 2 . | . . . Level 3 . | . . . Level 4 . | . . . Level 5 . | . . . High Security . | . . . Max Security . | . . . Squads Dispatched 4 | . 4 . Investigation 1 | . 1 . Extermination . | . . . Reinforcement 3 | . 3 . Assault . | . . . Garrison . | . . . Intercept . | . . . Searches Triggered . | . . . Construction Impeded . | . . . Haulers Reinforced . | . . . Active Scanning Responses . | . . . Cargo Convoy Interrupts . | . . . Stealth | -11 -10 -10 --------- Run | Yrd Mat Min Distress Signals 2 | . 2 . Communications Jammed . | . . . Distress Signals . | . . . Times Spotted 41 | . 31 10 Peak Tracking Total 9 | . 5 9 Tactical Retreats . | . . . Traps | -11 -10 -10 ------- Run | Yrd Mat Min Traps Triggered 2 | . 2 . Indirectly . | . . . Trap Hack Attempts . | . . . Triggered . | . . . Disarmed . | . . . Reprogrammed . | . . . Reused . | . . . Traps Extracted . | . . . Installed . | . . . Triggered . | . . . Machines | -11 -10 -10 ---------- Run | Yrd Mat Min Machines Disabled . | . . . Max in Single Turn . | . . . Machines Repaired . | . . . Machines Dismantled . | . . . Machines Sabotaged . | . . . Overloaded Fab Kills . | . . . Hacking | -11 -10 -10 --------- Run | Yrd Mat Min Machines Accessed 5 | . 5 . Terminals 3 | . 3 . Fabricators . | . . . Repair Stations 1 | . 1 . Recycling Units 1 | . 1 . Scanalyzers . | . . . Garrison Access . | . . . Total Hacks 10 | . 10 . Successful 6 | . 6 . Failed 4 | . 4 . Catastrophic . | . . . Database Lockouts . | . . . Manual . | . . . Terminals 4 | . 4 . Fabricators . | . . . Repair Stations 3 | . 3 . Recycling Units 3 | . 3 . Scanalyzers . | . . . Garrison Access . | . . . Terminal Hacks 3 | . 3 . Record 2 | . 2 . Robot Analysis 1 | . 1 . Fabricator Hacks . | . . . Repair Station Hacks 2 | . 2 . Scan Component 1 | . 1 . Repair 1 | . 1 . Recycling Unit Hacks 1 | . 1 . Process 1 | . 1 . Scanalyzer . | . . . Garrison Access Hacks . | . . . Unauthorized Hacks . | . . . Terminals . | . . . Fabricators . | . . . Repair Stations . | . . . Recycling Units . | . . . Scanalyzers . | . . . Garrison Access . | . . . Data Cores Recovered . | . . . Used . | . . . Hacking Detections 4 | . 4 . Full Trace Events . | . . . Feedback Events . | . . . Feedback Blocked . | . . . Robot Schematics Acquired . | . . . Robots Built . | . . . Authchips . | . . . Time . | . . . Total Robot Build Rating . | . . . Part Schematics Acquired . | . . . Parts Built . | . . . Authchips . | . . . Time . | . . . Total Part Build Rating . | . . . Parts Repaired 1 | . 1 . Time 26 | . 26 . Parts Recycled . | . . . Recycled Matter 103 | . 103 . Retrieved Matter . | . . . Retrieved Components . | . . . Parts Scanalyzed . | . . . Part Schematics Acquired . | . . . Parts Damaged . | . . . Bothacking | -11 -10 -10 ------------ Run | Yrd Mat Min Used RIF Installer . | . . . Robots Hacked . | . . . Non-combat . | . . . Combat . | . . . Robot Hacks Applied . | . . . Relay Couplers Released . | . . . Fabnet Peak Effective % . | . . . Robots Rewired . | . . . Allies Hacked . | . . . Hacks Repelled . | . . . Allies | -11 -10 -10 -------- Run | Yrd Mat Min Total Allies . | . . . Largest Group . | . . . Highest-Rated Group . | . . . Highest-Rated Ally . | . . . Total Orders . | . . . Ally Attacks . | . . . Total Damage . | . . . Kills . | . . . Allies Corrupted . | . . . Allies Melted . | . . . Intel | -11 -10 -10 ------- Run | Yrd Mat Min Robot Analysis Total 1 | . 1 . Derelict Logs Recovered . | . . . Drone Launches . | . . . Drone Recoveries . | . . . Exploration | -11 -10 -10 ------------- Run | Yrd Mat Min Turns Passed 1634 | 116 1337 181 Spaces Moved 872 | 54 722 96 Core 4 | 4 . . Treads 344 | 50 198 96 Legs 524 | . 524 . Wheels . | . . . Hover . | . . . Flight . | . . . Fastest Speed 50 | 50 120 160 Average Speed 135 | 151 130 160 Slowest Speed 160 | 160 160 160 Overloaded Moves . | . . . Propulsion Burnouts . | . . . Robots Hopped . | . . . Cave-ins Triggered . | . . . Exploration Rate (%) 42 | 5 90 31 Regions Visited 2 Branch Regions 1 Pre-discovered Areas . | . . . Known Exits Taken . | . . . Unknown Exits Taken 2 | 1 1 . Scrap Searched . | . . . Spaces Dug . | . . . Terrain Destroyed . | . . . Melee . | . . . Projectile . | . . . AOE . | . . . Terrain Rammed . | . . . Walls Destroyed . | . . . Machines Disabled . | . . . Actions | -11 -10 -10 --------- Run | Yrd Mat Min Total 1205 | 82 1010 113 Wait 175 | 6 164 5 Move 870 | 53 721 96 Hop . | . . . Pick Up 37 | 13 22 2 Fast Attach . | . . . Attach 12 | 7 5 . Detach . | . . . Swap 19 | . 16 3 Drop 19 | . 17 2 Fire 68 | 3 60 5 Melee . | . . . Ram . | . . . Kick 2 | . 2 . Crush 3 | . 3 . Escape Stasis . | . . . Rewire . | . . . Trap . | . . . Miscellaneous . | . . . Route ------- -11/Scrapyard -10/Materials (discovered 5 exits: [*Mat x3] / [*Min x2]) -10/Mines History --------- Turn | Location | Event 2 | -11/Scrapyard | Discovered new exit (range 16) 117 | -11/Scrapyard | Entered Materials 181 | -10/Materials | Discovered new exit (range 12) 304 | -10/Materials | Build established: Mutant 474 | -10/Materials | Core integrity fell below 50% 819 | -10/Materials | Discovered new exit (range 9) 970 | -10/Materials | Discovered new exit (range 16) 1033 | -10/Materials | Core integrity fell below 20% 1201 | -10/Materials | Repaired Med. Laser 1253 | -10/Materials | Discovered new exit (range 12) 1427 | -10/Materials | Discovered new exit (range 11) 1454 | -10/Materials | Entered Mines 1596 | -10/Mines | Received a Rocket Launcher from a helpful Derelict 1613 | -10/Mines | Assembled infested the area 1618 | -10/Mines | Assisted by a Guerilla fighting off Assembled 1635 | -10/Mines | Destroyed by as-43747 with Assembled Rifle Last Messages --------------- know I would if I were you, so I'm going to lend you mine." KK-8XK(g) slips back into the shadows. Dropped Mining Laser. Acquired Rocket Launcher. ALERT: Infestation in the mines, dispatching Demolisher response squad. 9E-RDZ(h): "I'll hold them off! Go on ahead or try to find another way!" HV Slug penetrates Wall. HV Slug penetrates Earth. A derelict emerges from the shadows: "You need to get out of here! I've been tracking a group of Assembled to figure out where they're coming from, and they're closing on this area, come on!" HV Slug penetrates as-48312. as-48312 suffers critical hit (Destroy). as-48312 destroyed. 9E-RDZ(h) destroyed. Map ----- +----------------------------------------------------+ | ???????????????????????????????????????????? | | ???????????????????????????????????????????? | | ???????????????????????????????????????????? | | ???????????????????????????????????????????? | | ??????????????????????????????????? ???????? | | ??????????????????????????????????? #??????? | | ??????????????????????????????????? #??????? | | ?????????????????????????????????? #???# ?? | | ?????????????????????????????????? #### ??? | | ?????????????????????????????????? "???? | | ??????????????????????????????#### #???? | | ??????????????????????????????# ##??? | | ?????????? ??????????????????? ##?? | | ????????# ???????????#####?? #?? | | ???????## ???????????#ggg#??# ???? | | ??????? ??????????## #??# ?????? | | ???????? #????????## #??#% #??????? | | ????????? #???????# #### #???????? | | ?????????# ???????# *%! #???????? | | ?????????# ##??????# !]! ##???????? | | ??????????# ###????## aa ##????????? | | ??????????# ##???##a a ##?????????? | | ??????????# #???# aa######??????????? | | ??????????# #???# #???????????????? | | ???????????# #????# a#???????????????? | | ???????????## ###### @##???????????????? | | ???????????# ur ##????????????????? | | ???????????# ####### #?????????????????? | | ???????????# ###????# #?????????????????? | | ???????????# #?????# ????????????????? | | ???????????# #?????# ???????????????? | | ???????????# #?????## ??????????????? | | ???????????# #??????## ## ?????????????? | | ???????????# #???????# ##?# ????????????? | | ############ #???????###??? #??????????? | | # # #?????????????? ##??????????? | | # """ """ # #??????????????###???????????? | | # """ """ # #????????????????????????????? | | """ """ # #????????????????????????????? | | # # #????????????????????????????? | | # #????????????????????????????? | | # ####????????????????????????????? | | ############???????????????????????????????? | | ???????????????????????????????????????????? | | ???????????????????????????????????????????? | | | | | | | | | | | +----------------------------------------------------+ Best States ------------- Heat Dissipation 35 Energy Generation 10 Energy Capacity 250 Matter Stores 300 Matter Capacity 300 Sight Range 16 Terrain Scan Density 10 ECM Strength 1 Evasion (%) 55 Recoil Reduction 2 Item Schematics ----------------- None Robot Schematics ------------------ None Fabricated ------------ Nothing Alien Tech Used ----------------- None Achievements -------------- It's Just You Part-time Mechanic Challenges ------------ None Game ------ Seed NetworkLatentMount Manual? 0 Play Time 00:23:45 Cumulative 2.2 hours Start 2024.04.02 @ 23:07:54 End 2024.04.02 @ 23:30:28 Sessions 1 Manual Loads 0 Difficulty Rogue Special Mode None Game No. 3 Rogue 3 Adventurer 0 Explorer 0 Win Type - Total 0 Types 0/0/0/0/0/0/0/0/0 Lore% 4 Gallery% 3 Achievement% 3 Wizard Run 0 Options --------- Layout 1 ASCII 0 Keyboard 0 Movement Numpad Keybinds 0 Fullscreen 1 Font 24/Terminus Map View 50x35 Zoom Use 0% Tactical HUD 0 Map Filters NONE Filters NONE Steam 1 RUN: 327b4c65-4c3e-48cb-87d3-1e25aa3a1e44